bitfinex-derivatives/quotes_ETHF0:USTF0_20260209
["timestamp","ask_amount","ask_price","bid_price","bid_amount"]
[1770647720713,40.8,2016.6,2015.0,6.3569]
[1770647720714,5.16355948,2016.3,2015.3,6.59437716]
[1770647720907,5.16355948,2016.3,2015.5,6.59437716]
[1770647721109,4.41241539,2016.9,2015.5,6.59437716]
[1770647721510,4.35802087,2016.5,2015.1,6.59437716]
[1770647721707,4.35802087,2016.1,2015.1,6.59437716]
[1770647721909,4.35802087,2015.9,2014.5,6.60041573]
[1770647722109,32.32319,2016.0,2014.5,6.60041573]
[1770647722110,4.57999979,2015.6,2014.5,6.60041573]
[1770647722508,10.68679979,2015.6,2014.5,0.00603857]
[1770647722717,9.49531927,2015.5,2014.5,0.00603857]
[1770647722915,4.52629639,2015.4,2014.5,0.00603857]
[1770647723116,4.27803639,2015.2,2013.9,6.59437716]
[1770647723320,4.27803639,2015.0,2013.9,6.59437716]
[1770647723518,4.27803639,2014.8,2013.3,6.59437716]
[1770647723919,4.27803639,2014.8,2013.5,6.59437716]
[1770647724123,4.25201995,2014.6,2013.5,0.0058111]
[1770647724315,4.25201995,2014.3,2012.9,6.59437716]
[1770647724623,4.25647808,2014.8,2013.1,6.59437716]
[1770647724816,0.00445813,2014.8,2013.3,6.59437716]
[1770647725010,4.39647315,2014.8,2013.3,6.59437716]
[1770647725212,0.00445813,2014.8,2013.5,6.59437716]
[1770647725625,0.00445813,2014.8,2013.7,6.59437716]
[1770647726019,0.00445813,2014.8,2013.9,6.59437716]
[1770647726217,4.36951452,2016.3,2014.2,6.59437716]
[1770647726414,4.36951452,2016.0,2014.7,6.59437716]
[1770647726619,5.16355948,2015.7,2014.7,6.59437716]
[1770647727120,4.05910087,2015.5,2014.3,6.59437716]
[1770647727318,4.05910087,2015.5,2013.8,6.59437716]
[1770647727518,6.35507,2015.6,2013.8,6.59437716]
[1770647727519,4.05910087,2015.3,2013.8,6.59437716]
[1770647727722,4.05910087,2015.1,2013.8,6.59437716]
[1770647728029,4.03254839,2014.7,2013.8,6.59437716]
[1770647728215,4.03254839,2014.7,2013.4,6.59437716]
[1770647728522,4.03254839,2014.7,2013.3,6.59944999]
[1770647728723,4.03254839,2015.0,2013.3,6.59944999]
[1770647728922,6.10803,2015.2,2013.3,6.59944999]
[1770647728923,5.16355948,2014.6,2013.3,6.59944999]
[1770647729119,5.16355948,2014.6,2013.5,6.59437716]
[1770647729425,3.42710265,2015.3,2013.5,6.59437716]
[1770647729627,3.42710265,2015.6,2013.8,6.84283716]
[1770647729923,8.56516499,2015.3,2013.8,6.84283716]
[1770647730130,3.40160551,2015.0,2013.8,6.59437716]
[1770647730326,3.40160551,2014.7,2013.5,6.59437716]
[1770647730828,3.40160551,2015.6,2013.9,6.59437716]
[1770647731217,3.49630024,2015.4,2013.9,6.59437716]
[1770647731424,5.16355948,2015.5,2014.3,6.59437716]
[1770647731621,0.00476875,2015.7,2014.3,6.59437716]
[1770647731822,0.00476875,2015.7,2014.5,6.59437716]
[1770647732019,3.72338369,2015.7,2014.5,6.59437716]
[1770647732224,0.00476875,2015.7,2014.5,6.59437716]
[1770647733029,3.24311376,2015.7,2014.5,6.59437716]
[1770647733331,3.23834501,2015.5,2014.5,6.59437716]
[1770647733526,5.16355948,2015.6,2014.5,6.59437716]
[1770647733830,3.24311376,2015.7,2014.5,6.59437716]
[1770647734031,3.24311376,2015.7,2014.1,0.24842]
[1770647734032,0.00476875,2015.7,2014.7,6.59437716]
[1770647734229,20.0,2016.0,2015.0,6.59437716]
[1770647734428,6.56786006,2016.9,2015.5,6.59437716]
[1770647734728,47.36786006,2016.9,2015.7,6.59437716]
[1770647735123,6.56786006,2016.8,2015.6,0.24824]
[1770647735324,6.56786006,2016.8,2015.1,6.59437716]
[1770647735325,6.56786006,2016.4,2015.1,6.59437716]
[1770647735518,6.56786006,2016.4,2015.5,0.00523168]
[1770647735731,40.8,2016.3,2014.7,6.59437716]
[1770647735924,40.8,2016.3,2014.9,6.59437716]
[1770647736230,6.57284208,2016.8,2015.3,6.59437716]
[1770647736419,6.57284208,2016.8,2015.7,6.59437716]
[1770647736420,0.00498202,2016.8,2015.7,6.59437716]
[1770647736620,6.57284208,2016.8,2015.7,6.59437716]
[1770647736826,6.57284208,2016.8,2015.7,6.59982975]
[1770647737328,0.00498202,2016.8,2015.7,6.59982975]
[1770647737528,6.57284208,2016.8,2015.7,6.59982975]
[1770647737928,20.0,2017.0,2016.1,6.59437716]
[1770647738231,6.56786006,2018.1,2016.9,4.61429438]
[1770647738525,6.56786006,2018.2,2016.9,4.61429438]
[1770647738732,6.56786006,2017.9,2016.4,4.61429438]
[1770647738931,6.57153711,2017.9,2016.4,4.61429438]
[1770647739126,0.00367705,2017.9,2016.7,6.19547375]
[1770647739525,0.00367705,2017.9,2016.9,6.19547375]
[1770647739732,6.56786006,2017.7,2015.9,6.19547375]
[1770647739927,6.56786006,2017.5,2015.9,6.19547375]
[1770647740132,6.56786006,2017.5,2016.1,6.15060229]
[1770647740632,6.56786006,2017.1,2015.8,6.37882769]
[1770647740819,6.56786006,2016.9,2015.7,0.00545259]
[1770647741022,6.56786006,2016.7,2015.7,0.00545259]
[1770647741423,7.83096076,2016.0,2015.7,0.00545259]
[1770647741626,6.56786006,2016.7,2015.7,0.00545259]
[1770647741827,8.06391501,2017.3,2015.8,6.47764871]
[1770647742128,8.06688676,2017.1,2015.7,0.00545259]
[1770647742322,12.00856496,2017.1,2015.7,0.00545259]
[1770647742526,8.06688676,2017.0,2015.7,0.00545259]
[1770647742830,8.06688676,2016.9,2015.7,0.00545259]
[1770647743131,8.03486637,2017.7,2016.5,6.52458933]
[1770647743334,8.03486637,2018.1,2016.8,0.42063933]
[1770647743628,8.03486637,2018.5,2017.0,0.42063933]
[1770647743824,8.03486637,2018.9,2017.8,0.42063933]
[1770647744024,8.03486637,2018.9,2017.4,0.37387842]
[1770647744229,8.0388033,2018.9,2017.4,0.00372112]
[1770647744530,8.22486616,2020.1,2018.2,6.09892]
[1770647744723,8.22486616,2020.1,2018.3,0.24791]
[1770647744923,8.22486616,2019.8,2018.3,6.80331857]
[1770647745228,8.22486616,2019.8,2018.1,6.51143452]
[1770647745429,8.18234481,2019.6,2018.0,0.04397405]
[1770647745629,8.18674839,2019.6,2018.2,6.51143452]
[1770647745825,8.18234481,2019.0,2017.6,0.05329837]
[1770647746025,8.18234481,2019.0,2017.4,0.00372112]
[1770647746026,8.18278523,2018.8,2017.4,0.00372112]
[1770647746233,8.18278523,2018.6,2017.4,0.00372112]
[1770647747032,8.17948495,2018.4,2017.4,0.00372112]
[1770647747230,8.17948495,2018.4,2016.0,33.37329]
[1770647747231,8.17948495,2018.2,2016.4,0.01308564]
[1770647747435,8.17948495,2018.0,2016.0,0.26126564]
[1770647747739,8.17948495,2017.4,2015.7,0.01308564]
[1770647748035,8.17948495,2017.4,2016.1,6.49157754]
[1770647748238,8.18501396,2017.4,2016.1,0.00425518]
[1770647748933,8.18191056,2017.2,2016.1,0.00425518]
[1770647749233,0.00552901,2017.4,2016.2,12.70460613]
[1770647749440,8.20715385,2018.0,2017.0,0.24806]
[1770647749838,8.20715385,2018.0,2017.1,6.35150613]
[1770647750038,8.20715385,2018.0,2016.4,6.35247]
[1770647750235,4.78968106,2017.9,2015.8,0.24821]
[1770647750441,8.20961242,2017.7,2015.9,6.10584]
[1770647750743,0.00416292,2017.9,2016.8,6.35124]
[1770647750931,0.00416292,2017.9,2016.8,0.24809]
[1770647751133,8.25074952,2017.9,2016.8,0.24809]
[1770647751638,0.00416292,2017.9,2016.8,0.24809]
[1770647752429,8.24902308,2018.6,2017.7,6.10027]
[1770647752632,8.24902308,2019.3,2018.2,0.24791]
[1770647752832,8.24902308,2019.3,2017.6,0.24799]
[1770647753038,8.29145362,2019.1,2017.6,0.24799]
[1770647753437,8.29689992,2019.1,2017.6,0.25381159]
[1770647754031,8.29689992,2019.1,2017.8,6.10011]
[1770647754235,8.29689992,2019.1,2017.8,0.24796]
[1770647754432,8.29689992,2019.1,2018.0,0.24794]
[1770647754740,8.29380392,2020.2,2019.0,0.24781]
[1770647755039,8.29380392,2020.2,2018.4,0.24789]
[1770647755540,8.2990219,2020.2,2018.4,6.34617]
[1770647755836,8.2990219,2020.2,2018.9,0.24783]
[1770647756234,1.51688167,2019.6,2018.9,0.24783]
[1770647756538,8.2990219,2020.2,2018.9,0.24783]
[1770647756738,8.2990219,2020.2,2018.4,6.09828]
[1770647756941,8.2990219,2020.2,2018.5,0.24788]
[1770647757350,8.34424596,2020.0,2017.9,6.34772]
[1770647758336,8.34424596,2020.0,2018.9,6.09679]
[1770647758641,0.00521798,2020.2,2019.2,0.24779]
[1770647758939,8.34655622,2020.4,2019.2,0.24779]
[1770647759138,8.37196182,2020.7,2019.4,0.24776]
[1770647759344,1.2721738,2021.2,2019.7,6.34205]
[1770647759345,8.37196182,2021.1,2019.7,6.34205]
[1770647759538,8.37196182,2021.1,2019.9,6.34144]
[1770647759738,8.37196182,2021.1,2019.9,0.25311206]
[1770647759739,0.00581336,2021.1,2019.9,0.25311206]
[1770647759937,8.37777518,2021.1,2019.9,0.25311206]
[1770647760139,8.37421151,2021.5,2020.3,0.24766]
[1770647760337,8.37421151,2021.5,2019.9,0.00541206]
[1770647760743,8.37421151,2021.3,2019.9,0.00541206]
[1770647760945,8.56525507,2020.9,2019.9,0.00541206]
[1770647761239,8.5702571,2020.9,2019.9,0.00541206]
[1770647761540,8.5702571,2020.9,2018.8,6.0971]
[1770647761745,8.56525507,2020.5,2018.4,6.34617]
[1770647762040,8.56525507,2020.5,2018.5,0.24788]
[1770647762343,8.56712266,2019.9,2018.5,0.00381564]
[1770647762543,8.56712266,2019.7,2018.5,0.00381564]
[1770647762740,8.56712266,2019.5,2017.8,6.10011]
[1770647762940,8.56712266,2019.5,2017.6,0.24799]
[1770647763140,8.56712266,2019.5,2017.8,6.34786]
[1770647763340,8.56712266,2019.5,2017.2,6.10169]
[1770647763538,8.4740814,2019.3,2017.2,0.24803]
[1770647763732,8.4740814,2019.1,2017.2,0.25430884]
[1770647764242,8.4740814,2019.1,2017.8,0.24797]
[1770647764739,8.4740814,2019.1,2018.0,6.09951]
[1770647764933,8.4740814,2019.1,2017.8,6.10013]
[1770647764934,8.47616429,2019.8,2018.8,0.24783]
[1770647765140,8.48962281,2021.1,2019.0,6.34428]
[1770647765333,8.48962281,2021.1,2019.6,0.24774]
[1770647765533,8.48962281,2021.1,2019.1,0.2478]
[1770647765735,8.48962281,2021.1,2019.1,6.34399]
[1770647765936,8.49168723,2020.9,2019.3,6.34331]
[1770647766141,8.49168723,2020.9,2019.5,6.09491]
[1770647766434,8.49168723,2020.9,2019.4,0.24777]
[1770647767140,8.49168723,2020.9,2019.7,0.24773]
[1770647767345,38.37166,2022.1,2019.2,6.09589]
[1770647767346,8.51081395,2022.2,2020.9,0.24758]
[1770647767641,8.51081395,2022.2,2020.8,0.2476]
[1770647767843,8.51081395,2022.0,2020.2,6.09263]
[1770647768034,8.51081395,2022.0,2020.2,0.24767]
[1770647768238,8.51684309,2021.9,2020.4,0.24765]
[1770647768438,8.51684309,2021.9,2020.4,6.3399]
[1770647768641,8.51684309,2021.9,2020.2,0.00641874]
[1770647769138,8.51684309,2021.9,2020.3,6.34024]
[1770647769347,8.51684309,2021.9,2020.3,0.24766]
[1770647769540,8.51684309,2021.9,2020.5,6.3396]
[1770647769741,8.51684309,2021.9,2020.2,0.00641874]
[1770647769937,8.51684309,2021.9,2020.5,0.24764]
[1770647770641,8.51684309,2021.9,2020.2,0.00641874]
[1770647770838,14.60477309,2021.9,2020.2,0.00641874]
[1770647771148,8.76432309,2021.9,2020.2,0.00641874]
[1770647771342,8.56624179,2021.0,2020.2,0.00641874]
[1770647771541,8.56624179,2021.0,2019.1,0.2478]
[1770647771738,8.56624179,2020.8,2019.1,0.2478]
[1770647771936,8.56624179,2020.8,2019.3,0.24778]
[1770647772140,8.56624179,2020.8,2018.9,33.11466]
[1770647772141,8.5682098,2020.6,2018.9,27.018]
[1770647772341,8.5682098,2020.6,2019.4,6.34305]
[1770647772842,8.5682098,2020.6,2019.7,6.34207]
[1770647772843,0.00398967,2020.6,2019.7,6.34207]
[1770647773038,0.00398967,2020.6,2019.4,6.09992195]
[1770647773039,8.64655539,2020.5,2019.4,0.00464195]
[1770647773237,8.65177546,2020.5,2019.4,0.00464195]
[1770647773440,0.00522007,2020.5,2019.4,0.00464195]
[1770647773639,8.65576513,2020.5,2019.4,0.00464195]
[1770647774242,8.65576513,2020.5,2017.9,0.24795]
[1770647774243,8.64836093,2019.7,2017.9,0.24795]
[1770647774438,8.64836093,2019.5,2017.9,6.34775]
[1770647774646,8.64836093,2019.5,2017.9,0.24796]
[1770647774948,8.64836093,2019.3,2017.9,6.34779]
[1770647775142,8.64836093,2019.3,2017.9,0.25386992]
[1770647775339,8.66459934,2019.1,2017.9,0.25386992]
[1770647775539,8.66459934,2019.1,2017.9,0.00590992]
[1770647775739,8.66459934,2018.9,2017.9,0.00590992]
[1770647775944,8.37926086,2019.2,2018.3,6.34649]
[1770647776140,8.37926086,2019.2,2018.3,6.65038487]
[1770647776652,8.12662086,2019.6,2018.7,0.24786]
[1770647777154,8.13123623,2019.6,2018.7,0.24786]
[1770647777651,7.96311311,2020.4,2019.1,0.24781]
[1770647778249,7.96311311,2020.4,2018.5,6.34581]
[1770647778645,7.96844549,2020.4,2018.5,0.24787]
[1770647779253,7.96844549,2020.4,2018.9,0.24783]
[1770647779948,7.96844549,2020.4,2018.9,6.34449]
[1770647780450,7.96844549,2020.4,2019.3,0.24778]
[1770647780650,42.98333327,2021.5,2019.2,6.0959]
[1770647780651,7.42922897,2021.8,2020.1,0.24767]
[1770647781047,7.42922897,2021.8,2020.4,0.24765]
[1770647781260,7.42922897,2021.6,2020.4,6.33992]
[1770647781460,7.42922897,2021.6,2020.4,0.24765]
[1770647781644,7.42922897,2021.6,2020.4,0.25217886]
[1770647781954,7.43374413,2021.6,2020.4,0.25217886]
[1770647782357,7.68124413,2021.6,2020.4,0.00452886]
[1770647782558,7.42922897,2020.8,2018.8,4.35244165]
[1770647782745,7.42922897,2020.6,2018.9,0.24783]
[1770647783452,7.42922897,2020.6,2018.9,0.25218737]
[1770647783659,7.42922897,2020.4,2018.9,0.00435737]
[1770647784051,7.42922897,2020.0,2018.9,0.00435737]
[1770647784255,7.43397985,2020.0,2018.3,0.2479]
[1770647784551,0.24771,2019.9,2018.0,5.92644731]
[1770647784754,7.42922897,2019.4,2017.8,6.40248487]
[1770647784955,7.42922897,2018.9,2017.6,6.40248487]
[1770647785162,7.42922897,2018.9,2017.6,0.00529719]
[1770647785452,7.42922897,2018.9,2016.9,5.92644731]
[1770647785453,7.42922897,2018.7,2017.2,0.24803]
[1770647785658,7.42922897,2018.7,2016.5,10.70462165]
[1770647785958,7.42922897,2018.7,2016.5,6.0901527]
[1770647786148,7.42922897,2018.4,2016.5,0.24812]
[1770647786356,7.43387127,2018.4,2017.2,0.24804]
[1770647786650,7.43387127,2018.4,2017.0,1.48959105]
[1770647787251,7.53642106,2018.2,2017.0,1.48959105]
[1770647787556,7.53642106,2018.2,2016.8,1.48959105]
[1770647787755,7.53642106,2018.2,2017.1,1.48959105]
[1770647788258,7.53642106,2018.2,2016.8,1.48959105]
[1770647789159,9.0319671,2017.9,2016.5,0.00561163]
[1770647789657,9.0319671,2017.5,2015.4,6.35548]
[1770647789863,9.0319671,2017.5,2015.4,0.24825]
[1770647790160,9.0319671,2017.5,2014.7,32.73063948]
[1770647790161,9.02703885,2016.7,2014.7,0.24834]
[1770647790359,9.02703885,2016.7,2014.7,6.35785]
[1770647790659,9.03056478,2016.7,2015.3,6.35583]
[1770647791062,9.03056478,2016.7,2015.5,6.107]
[1770647791255,9.03056478,2016.7,2015.4,0.24826]
[1770647791557,9.03056478,2016.7,2014.7,0.25330414]
[1770647791759,9.08877134,2016.2,2014.7,0.00496414]
[1770647791965,6.10527,2016.1,2014.7,0.00496414]
[1770647792161,6.35509593,2016.7,2014.4,0.08618928]
[1770647792162,9.08963429,2016.0,2014.6,6.10972]
[1770647792359,9.08963429,2016.0,2015.0,6.10856]
[1770647792562,9.08715222,2016.6,2015.5,6.10704]
[1770647793160,9.08715222,2016.6,2015.5,0.00572492]
[1770647794369,1.29394278,2017.9,2015.8,6.35435]
[1770647794370,9.06367758,2017.0,2015.8,6.35435]
[1770647794676,9.06367758,2017.0,2016.0,6.10553]
[1770647794863,9.06367758,2017.0,2016.0,0.24819]
[1770647795264,40.8,2017.8,2016.2,6.10475]
[1770647795265,9.06544935,2017.4,2016.2,6.10475]
[1770647795458,0.00413619,2017.0,2016.1,6.35345]
[1770647795765,9.06958554,2017.0,2016.1,0.24818]
[1770647795964,9.06958554,2017.0,2015.5,0.00572492]
[1770647796767,9.06649725,2016.8,2015.5,0.00572492]
[1770647797275,8.97018666,2016.6,2014.8,6.10919]
[1770647797569,8.97018666,2016.6,2014.8,6.35753]
[1770647797762,8.97018666,2016.6,2015.0,0.24831]
[1770647798062,8.97018666,2016.6,2015.0,0.25473385]
[1770647798262,8.97018666,2016.6,2015.2,6.35627]
[1770647798563,8.97018666,2016.6,2015.2,0.24829]
[1770647798764,8.97018666,2016.6,2015.0,0.00642385]
[1770647798966,8.97018666,2016.6,2015.1,6.3566]
[1770647799166,8.97018666,2016.6,2015.5,6.35529]
[1770647799362,8.95861142,2016.9,2015.7,6.3546]
[1770647799558,8.95861142,2016.9,2015.9,6.35397]
[1770647799760,0.00330475,2017.0,2016.1,0.24818]
[1770647799960,8.96191617,2017.0,2016.1,6.35335]
[1770647800167,8.96191617,2017.0,2016.1,0.24818]
[1770647800471,8.96191617,2017.0,2015.6,0.24824]
[1770647800769,8.96191617,2017.0,2015.9,0.2482]
[1770647800967,8.96191617,2017.0,2015.4,6.10732]
[1770647801160,8.96191617,2017.0,2015.0,6.11478385]
[1770647801366,8.95115678,2016.8,2015.0,0.00642385]
[1770647801673,15.05434678,2016.8,2015.0,0.00642385]
[1770647801864,8.95115678,2016.5,2015.0,0.00642385]
[1770647803371,8.95115678,2016.5,2015.4,6.35558]
[1770647803770,8.16541338,2016.9,2015.6,6.35501]
[1770647804472,0.00330475,2017.0,2015.8,6.35436]
[1770647804665,0.24794,2018.1,2016.7,6.1034]
[1770647804666,7.91558582,2018.1,2016.7,6.1034]
[1770647804870,7.91558582,2018.1,2016.7,0.2481]
[1770647805070,7.91558582,2018.1,2017.1,6.10218]
[1770647805271,7.91558582,2018.1,2017.2,0.24804]
[1770647805471,7.91558582,2018.1,2016.4,0.24814]
[1770647805773,14.01946694,2018.1,2016.4,0.00363181]
[1770647805977,8.04490332,2018.0,2016.4,0.00363181]
[1770647806565,8.04393561,2017.8,2016.4,0.00363181]
[1770647807669,8.04393561,2017.8,2016.5,6.35213]
[1770647807875,8.04393561,2017.8,2016.5,0.24813]
[1770647808075,8.04393561,2017.8,2016.7,6.35135]
[1770647808371,8.04393561,2017.8,2016.7,0.24809]
[1770647808776,8.04393561,2017.8,2016.7,6.35149]
[1770647808971,8.04393561,2017.8,2016.7,0.24809]
[1770647809170,8.04393561,2017.8,2016.4,0.00363181]
[1770647809470,8.04393561,2017.8,2016.5,6.35219]
[1770647809771,8.0153918,2018.1,2016.9,6.10281]
[1770647809964,8.0153918,2018.1,2017.0,0.24806]
[1770647810774,7.71717287,2018.9,2017.6,6.10053]
[1770647810977,7.71717287,2018.9,2017.9,6.34778]
[1770647811177,7.4711649,2020.0,2018.9,6.34458]
[1770647811478,1.88084285,2020.1,2019.9,6.34126]
[1770647811781,7.2020849,2021.2,2019.9,0.005943]
[1770647812084,7.20832301,2021.2,2019.9,0.005943]
[1770647812372,7.20832301,2021.2,2019.2,4.73673456]
[1770647812373,7.17897159,2021.1,2019.3,6.09545]
[1770647812572,7.17897159,2021.1,2019.5,6.34263]
[1770647812878,7.17897159,2021.1,2018.8,6.96072014]
[1770647813270,7.17897159,2021.1,2020.0,0.2477]
[1770647813473,7.17897159,2021.1,2019.4,6.92461692]
[1770647813779,7.17897159,2021.1,2019.4,0.24777]
[1770647814276,7.17897159,2021.1,2018.8,0.25253524]
[1770647814581,7.17197497,2020.5,2018.8,0.00468524]
[1770647814778,7.17197497,2021.1,2019.6,6.0946]
[1770647814970,0.00623811,2021.2,2020.5,0.24763]
[1770647815176,8.11e-06,2021.2,2020.7,6.33879]
[1770647815376,8.11e-06,2021.2,2020.5,0.00370271]
[1770647815972,7.17198308,2021.2,2020.5,0.00370271]
[1770647816184,7.17198308,2021.2,2019.5,6.09496]
[1770647816383,7.17198308,2021.2,2019.1,1.30132612]
[1770647816584,7.17197497,2021.0,2019.4,6.09528]
[1770647816792,7.17197497,2021.0,2019.2,1.30132612]
[1770647817087,7.17197497,2020.7,2019.2,0.00521515]
[1770647818384,7.41962497,2020.4,2019.2,0.00521515]
[1770647818682,7.17197497,2020.4,2018.6,6.34547]
[1770647818885,7.17197497,2020.4,2018.8,6.34488]
[1770647819085,7.17197497,2020.4,2019.0,0.24782]
[1770647819572,7.17197497,2020.4,2019.0,6.8134527]
[1770647819772,7.17197497,2020.4,2019.3,6.56192131]
[1770647820171,7.17197497,2020.4,2019.5,6.49345731]
[1770647820374,7.17197497,2020.4,2019.1,0.8946567]
[1770647820575,8.11e-06,2021.2,2020.2,6.49345731]
[1770647820779,7.17197497,2022.9,2021.1,0.24756]
[1770647820970,7.17197497,2022.8,2021.4,6.33673]
[1770647821172,7.17197497,2022.8,2021.8,0.24747]
[1770647821371,7.17197497,2022.8,2021.1,0.24756]
[1770647821583,6.08599,2022.5,2020.5,1.35187517]
[1770647821783,7.17197497,2022.4,2020.5,0.00556355]
[1770647822082,7.17197497,2022.2,2020.5,0.00556355]
[1770647822285,7.17197497,2022.0,2020.5,0.00556355]
[1770647823073,6.63429497,2022.0,2021.3,6.33706]
[1770647823275,0.00634537,2022.5,2022.2,6.08684]
[1770647823472,6.65573497,2023.2,2022.6,6.08562]
[1770647823679,7.17197497,2024.8,2022.7,6.3326]
[1770647823886,7.17197497,2024.6,2023.2,6.33108]
[1770647824075,7.17197497,2024.6,2023.6,6.08258]
[1770647824276,7.17197497,2024.6,2024.0,6.08141]
[1770647824482,7.17197497,2025.4,2024.0,0.00482772]
[1770647824777,7.17197497,2025.1,2023.1,3.58733857]
[1770647824977,7.17197497,2025.1,2023.5,3.61842863]
[1770647825185,7.17197497,2025.1,2023.9,3.62367779]
[1770647825574,7.17805835,2025.0,2023.9,3.62367779]
[1770647825777,0.00416385,2025.0,2024.6,6.07943]
[1770647826082,7.17197497,2026.4,2024.3,0.24716]
[1770647826274,7.17197497,2025.7,2023.9,0.00599233]
[1770647826677,7.17197497,2025.7,2024.3,3.65063529]
[1770647826883,7.17197497,2025.7,2024.2,6.08081]
[1770647826884,7.17763576,2025.7,2024.4,3.65063529]
[1770647827078,7.17197497,2025.5,2024.2,9.67924887]
[1770647827278,7.17197497,2025.5,2024.4,9.67864887]
[1770647827478,7.17763576,2025.7,2024.4,3.59840887]
[1770647827786,7.17197497,2028.2,2026.3,10.2224647]
[1770647828086,7.17197497,2028.2,2026.8,6.07304]
[1770647828277,7.17197497,2028.2,2025.8,3.87718185]
[1770647828581,7.17197497,2028.0,2026.0,3.87718185]
[1770647828783,7.17769218,2028.0,2026.0,3.88321199]
[1770647828986,7.17197497,2027.6,2026.0,0.00603014]
[1770647829483,7.17197497,2027.6,2026.6,6.07357]
[1770647829787,7.17769218,2028.0,2027.0,6.07241]
[1770647830087,7.17769218,2028.0,2026.7,11.94122123]
[1770647830282,7.17769218,2028.0,2026.0,9.91874809]
[1770647830283,7.17197497,2027.8,2026.0,9.91874809]
[1770647830588,7.17197497,2027.8,2026.4,6.3515908]
[1770647830793,7.17197497,2027.5,2026.4,4.4515309]
[1770647831084,7.17197497,2027.5,2026.5,6.4085003]
[1770647831485,7.17197497,2027.5,2026.2,6.4085003]
[1770647831790,7.17197497,2028.5,2027.2,12.20185434]
[1770647831985,7.17197497,2028.5,2027.2,6.13006434]
[1770647832182,7.17197497,2028.5,2027.3,6.56028902]
[1770647832383,7.17197497,2028.5,2026.4,6.69390121]
[1770647832588,7.17197497,2028.5,2027.4,6.07119]
[1770647832889,7.17197497,2028.5,2027.2,6.69390121]
[1770647833087,0.00345109,2028.5,2027.6,6.07052]
[1770647833281,6.06221,2030.5,2027.6,6.07052]
[1770647833282,7.17197497,2029.3,2028.0,12.77637498]
[1770647833483,7.17197497,2029.3,2028.0,6.70692498]
[1770647833687,0.00345109,2029.2,2028.2,12.77563498]
[1770647833986,0.00345109,2029.2,2028.1,6.06915]
[1770647833987,7.17197497,2029.6,2028.3,6.408017]
[1770647834193,0.00345109,2029.5,2028.5,12.5769346]
[1770647834391,7.17197497,2029.8,2028.5,12.5769346]
[1770647834392,7.17197497,2029.8,2028.5,6.5090046]
[1770647834688,7.17197497,2030.5,2029.3,12.57099351]
[1770647834891,7.18482898,2030.7,2029.3,6.45646604]
[1770647835089,7.18482898,2030.7,2029.4,18.62781698]
[1770647835285,7.18970557,2030.7,2029.4,12.93574419]
[1770647835488,7.18970557,2030.7,2029.4,6.454362]
[1770647835788,7.18970557,2030.7,2029.8,12.5013782]
[1770647835789,0.0177306,2030.7,2029.8,12.5013782]
[1770647835991,7.21203404,2031.8,2030.4,11.76699979]
[1770647836194,7.21203404,2031.8,2030.6,6.06161]
[1770647836492,0.065,2032.7,2030.4,12.01342979]
[1770647836493,0.065,2032.7,2031.7,11.76314979]
[1770647836791,7.27703404,2032.9,2031.4,5.70475979]
[1770647837088,0.07119758,2032.9,2031.8,5.65660831]
[1770647837287,7.28323162,2032.9,2031.6,10.18887445]
[1770647837487,0.07119758,2032.9,2031.9,17.65048607]
[1770647837689,0.07119758,2032.9,2032.0,5.65660831]
[1770647837883,7.28323162,2032.9,2031.4,0.00437705]
[1770647838083,7.28323162,2032.9,2032.0,6.29269112]
[1770647838292,7.28323162,2032.9,2031.8,6.36948277]
[1770647838488,7.28323162,2032.9,2031.5,5.59519802]
[1770647838795,7.28323162,2032.9,2031.8,6.36948277]
[1770647839294,7.28323162,2032.9,2031.9,6.42957843]
[1770647839593,7.28323162,2032.9,2031.8,6.42957843]
[1770647839993,6.70612561,2032.7,2031.4,0.00437705]
[1770647840195,6.70612561,2032.7,2031.9,6.26892202]
[1770647840498,6.70612561,2032.7,2031.6,6.26892202]
[1770647840797,6.70612561,2032.1,2030.3,5.31739539]
[1770647840991,6.70612561,2031.7,2029.9,5.2646667]
[1770647841196,6.70612561,2031.5,2030.4,6.26455475]
[1770647841393,6.70612561,2031.1,2030.0,6.26455475]
[1770647841590,6.70612561,2030.3,2029.0,6.82393549]
[1770647841891,0.00606694,2030.3,2029.2,6.82393549]
[1770647842095,6.71219255,2030.3,2029.2,6.82393549]
[1770647842297,0.00606694,2030.3,2029.3,19.42388377]
[1770647842491,6.70612561,2031.1,2029.9,6.82393549]
[1770647842799,6.70612561,2030.9,2029.5,6.82393549]
[1770647842992,6.70612561,2030.9,2029.1,12.14799948]
[1770647842993,6.70612561,2030.5,2029.1,18.97193497]
[1770647843289,6.70612561,2029.9,2029.0,0.00492102]
[1770647843494,6.70612561,2029.9,2028.3,6.82393549]
[1770647843889,6.70612561,2030.3,2029.0,12.89039549]
[1770647844192,6.70612561,2030.3,2028.7,6.82393549]
[1770647844398,6.71202907,2030.3,2029.1,6.46209553]
[1770647844702,0.00590346,2030.3,2029.4,6.82393549]
[1770647845289,6.70612561,2031.4,2029.9,6.82393549]
[1770647845495,6.70612561,2031.4,2029.8,6.82393549]
[1770647845496,6.70612561,2031.4,2030.3,6.82393549]
[1770647845789,6.70612561,2032.0,2030.7,6.82393549]
[1770647846193,6.70612561,2032.0,2030.9,8.64576282]
[1770647846394,6.70991628,2032.0,2030.9,0.00374227]
[1770647846590,6.70991628,2032.0,2031.0,6.42830583]
[1770647846991,6.70991628,2032.0,2030.9,0.00374227]
[1770647847188,6.70612561,2031.9,2030.9,0.00374227]
[1770647847696,6.70612561,2031.9,2030.3,6.82393549]
[1770647847995,6.70612561,2031.8,2030.4,6.52722308]
[1770647848190,6.70612561,2031.4,2030.4,4.00545888]
[1770647848390,6.70612561,2031.4,2029.5,6.82393549]
[1770647848591,6.70612561,2031.2,2030.0,2.5217642]
[1770647848797,6.70612561,2031.0,2029.7,6.82393549]
[1770647849293,6.70612561,2031.0,2029.8,6.51088719]
[1770647849492,6.70612561,2031.0,2029.8,11.43488719]
[1770647849693,6.70612561,2031.4,2030.2,6.82393549]
[1770647850095,6.70612561,2031.4,2030.3,6.51088719]
[1770647850297,6.70612561,2031.8,2030.6,6.82393549]
[1770647850494,6.70612561,2031.8,2030.7,6.82393549]
[1770647850690,6.70612561,2031.8,2030.7,13.31785967]
[1770647850896,6.70612561,2031.8,2030.7,6.49392418]
[1770647851092,6.70612561,2031.8,2030.4,6.49392418]
[1770647851291,6.70612561,2031.8,2029.7,6.82393549]
[1770647851602,6.70612561,2031.8,2030.1,6.82393549]
[1770647852094,6.70612561,2031.8,2030.2,6.39306927]
[1770647852303,6.70612561,2031.8,2030.3,12.88650549]
[1770647852493,6.70612561,2031.8,2029.8,6.82393549]
[1770647852692,6.70612561,2031.5,2029.8,6.82393549]
[1770647853295,6.70612561,2031.5,2029.9,6.82393549]
[1770647853496,6.70612561,2031.5,2030.0,6.82393549]